fUST/lending_fUST_20251130
["ID","MTS","AMOUNT","RATE_DAILY","PERIOD"]
[395175989,1764514837848,-234.488411,6.709e-05,2]
[395175990,1764514837881,-500.0,6.709e-05,2]
[395175991,1764514837914,-278.28281636,6.709e-05,2]
[395175992,1764514838214,-221.71718364,6.709e-05,2]
[395175993,1764514838257,-500.0,6.709e-05,2]
[395175994,1764514838306,-500.0,6.709e-05,2]
[395175995,1764514838353,-500.0,6.709e-05,2]
[395175996,1764514838395,-500.0,6.709e-05,2]
[395175997,1764514838442,-500.0,6.709e-05,2]
[395175998,1764514838485,-500.0,6.709e-05,2]
[395175999,1764514838529,-500.0,6.709e-05,2]
[395176000,1764514838571,-500.0,6.709e-05,2]
[395176001,1764514838615,-500.0,6.709e-05,2]
[395176002,1764514838659,-56.57563272,6.709e-05,2]
[395176003,1764514838821,-443.42436728,6.709e-05,2]
[395176004,1764514838866,-500.0,6.709e-05,2]
[395176005,1764514838907,-500.0,6.709e-05,2]
[395176006,1764514838947,-500.0,6.709e-05,2]
[395176007,1764514838990,-500.0,6.709e-05,2]
[395176008,1764514839032,-500.0,6.709e-05,2]
[395176009,1764514839075,-500.0,6.709e-05,2]
[395176010,1764514839124,-500.0,6.709e-05,2]
[395176011,1764514839172,-425.88872381,6.709e-05,2]
[395176012,1764514839215,-500.0,6.709e-05,2]
[395176013,1764514839475,-500.0,6.709e-05,2]
[395176014,1764514839511,-500.0,6.709e-05,2]
[395176015,1764514839546,-500.0,6.709e-05,2]
[395176016,1764514839824,-500.0,6.709e-05,2]
[395176017,1764514839861,-500.0,6.709e-05,2]
[395176018,1764514839895,-500.0,6.709e-05,2]
[395176019,1764514839928,-500.0,6.709e-05,2]
[395176020,1764514839962,-500.0,6.709e-05,2]
[395176021,1764514839996,-500.0,6.709e-05,2]
[395176022,1764514840030,-500.0,6.709e-05,2]
[395176023,1764514842312,-500.0,6.709e-05,2]
[395176024,1764514842346,-500.0,6.709e-05,2]
[395176025,1764514842378,-500.0,6.709e-05,2]
[395176026,1764514842411,-500.0,6.709e-05,2]
[395176027,1764514842442,-500.0,6.709e-05,2]
[395176028,1764514842473,-500.0,6.709e-05,2]
[395176029,1764514842504,-500.0,6.709e-05,2]
[395176030,1764514842535,-500.0,6.709e-05,2]
[395176031,1764514842567,-500.0,6.709e-05,2]
[395176032,1764514842601,-441.38439736,6.709e-05,2]
[395176033,1764514842661,-117.24120528,6.709e-05,2]
[395176034,1764514842693,-500.0,6.709e-05,2]
[395176035,1764514842726,-500.0,6.709e-05,2]
[395176036,1764514842758,-500.0,6.709e-05,2]
[395176037,1764514842789,-500.0,6.709e-05,2]
[395176038,1764514842819,-500.0,6.709e-05,2]
[395176039,1764514842852,-500.0,6.709e-05,2]
[395176040,1764514842883,-500.0,6.709e-05,2]
[395176041,1764514850823,2580.0,6.116e-05,2]
[395176042,1764514864168,-300.0,6.115e-05,2]
[395176043,1764514864190,-23.07587931,6.116e-05,2]
[395176044,1764514865650,-190.49077399,6.116e-05,2]
[395176045,1764514868437,-194.02701653,6.116e-05,2]
[395176046,1764514869097,-7189.82310181,6.116e-05,2]
[395176047,1764514869296,-10000.01,6.116e-05,2]
[395176048,1764514869506,-10000.01,6.116e-05,2]
[395176049,1764514869696,-1227.82342104,6.116e-05,2]
[395176050,1764514869724,-7544.36315792,6.116e-05,2]
[395176051,1764514869849,-300.0,6.237e-05,2]
[395176052,1764514869881,-300.0,6.237e-05,2]
[395176053,1764514869914,-300.0,6.237e-05,2]
[395176054,1764514869945,-300.0,6.237e-05,2]
[395176055,1764514869977,-300.0,6.237e-05,2]
[395176056,1764514870008,-300.0,6.237e-05,2]
[395176057,1764514870039,-300.0,6.237e-05,2]
[395176058,1764514870071,-300.0,6.237e-05,2]
[395176059,1764514870274,-300.0,6.237e-05,2]
[395176060,1764514870333,-4900.01,6.711e-05,2]
[395176061,1764514870441,-300.0,6.711e-05,2]
[395176062,1764514870459,-6999.89131257,6.711e-05,2]
[395176063,1764514878146,-296.53951754,6.175e-05,2]
[395176064,1764514881355,-214.70003935,6.175e-05,2]
[395176065,1764514881386,-300.0,6.237e-05,2]
[395176066,1764514881416,-300.0,6.237e-05,2]
[395176067,1764514881448,-300.0,6.237e-05,2]
[395176068,1764514881479,-300.0,6.237e-05,2]
[395176069,1764514881508,-300.0,6.237e-05,2]
[395176070,1764514881537,-300.0,6.237e-05,2]
[395176071,1764514890977,500.0,6.708e-05,2]
[395176072,1764514891361,500.0,6.708e-05,2]
[395176073,1764514891703,500.0,6.708e-05,2]
[395176074,1764514892399,500.0,6.708e-05,2]
[395176075,1764514893081,623.76453233,6.708e-05,2]
[395176076,1764514893420,476.7682238,6.708e-05,2]
[395176077,1764514893473,512.00802929,6.708e-05,2]
[395176078,1764514893963,578.73617807,6.708e-05,2]
[395176079,1764514894094,500.0,6.708e-05,2]
[395176080,1764514894416,382.00383721,6.708e-05,2]
[395176081,1764514894721,167.00628676,6.644e-05,2]
[395176082,1764514903234,558.34,6.577e-05,2]
[395176083,1764514903358,171.98283384,6.577e-05,2]
[395176084,1764514903383,12.84516616,6.577e-05,2]
[395176085,1764514922801,300.0,6.71e-05,2]
[395176086,1764514953922,182.60404871,6.71e-05,2]
[395176087,1764514955296,153.55598191,6.71e-05,2]
[395176088,1764514976405,1200.0,6.71e-05,2]
[395176089,1764514982777,300.0,6.71e-05,2]
[395176090,1764515043293,300.0,6.71e-05,2]
[395176091,1764515075954,-673507.764125,6.711e-05,2]
[395176092,1764515075981,-206.73576502,6.711e-05,2]
[395176093,1764515081875,-664.83436502,6.758e-05,2]
[395176094,1764515082101,-250.72615188,6.804e-05,2]
[395176095,1764515082154,-10000.01,6.804e-05,2]
[395176096,1764515082225,-561.23295732,6.804e-05,2]
[395176097,1764515082260,-600.0,6.844e-05,2]
[395176098,1764515082293,-300.0,6.844e-05,2]
[395176099,1764515082327,-300.0,6.844e-05,2]
[395176100,1764515082366,-300.0,6.844e-05,2]
[395176101,1764515082401,-300.0,6.844e-05,2]
[395176102,1764515082435,-300.0,6.844e-05,2]
[395176103,1764515082467,-300.0,6.844e-05,2]
[395176104,1764515082498,-300.0,6.844e-05,2]
[395176105,1764515082530,-300.0,6.844e-05,2]
[395176106,1764515082562,-300.0,6.844e-05,2]
[395176107,1764515082594,-300.0,6.844e-05,2]
[395176108,1764515082625,-300.0,6.844e-05,2]
[395176109,1764515082657,-300.0,6.844e-05,2]
[395176110,1764515082688,-177.54408536,6.844e-05,2]
[395176111,1764515082869,-122.45591464,6.844e-05,2]
[395176112,1764515082904,-300.0,6.844e-05,2]
[395176113,1764515082935,-300.0,6.844e-05,2]
[395176114,1764515082964,-252.03863176,6.85e-05,2]
[395176115,1764515082994,-4010.02054649,6.871e-05,2]
[395176116,1764515083822,-122.45591464,6.881e-05,2]
[395176117,1764515083838,-30.97981422,6.881e-05,2]
[395176118,1764515089046,-279.12566784,6.881e-05,2]
[395176119,1764515089076,-2280.72263127,6.898e-05,2]
[395176120,1764515089108,-766.870705,6.979e-05,2]
[395176121,1764515089141,-766.870705,6.979e-05,2]
[395176122,1764515089175,-766.870705,6.979e-05,2]
[395176123,1764515089308,-279.08917178,6.979e-05,2]
[395176124,1764515089341,-487.78153322,6.979e-05,2]
[395176125,1764515089372,-4151.94505134,6.979e-05,2]
[395176126,1764515089429,-720.55683088,6.979e-05,2]
[395176127,1764515090139,206.73576502,6.611e-05,2]
[395176128,1764515096405,-1741.39148407,6.995e-05,2]
[395176129,1764515096436,-331.43333924,7.001e-05,2]
[395176130,1764515096465,-2740.78230875,7.002e-05,2]
[395176131,1764515096558,-372.79573588,7.004e-05,2]
[395176132,1764515096639,-57.72498078,7.004e-05,2]
[395176133,1764515096670,-608.0,7.01e-05,2]
[395176134,1764515096701,-151.0,7.01e-05,2]
[395176135,1764515096735,-151.0,7.01e-05,2]
[395176136,1764515096766,-151.0,7.01e-05,2]
[395176137,1764515096799,-151.0,7.01e-05,2]
[395176138,1764515096829,-151.0,7.01e-05,2]
[395176139,1764515096859,-151.0,7.01e-05,2]
[395176140,1764515096889,-1583.83516061,7.016e-05,2]
[395176141,1764515096918,-325.30821181,7.038e-05,2]
[395176142,1764515096948,-450.06898529,7.041e-05,2]
[395176143,1764515096978,-531.22927213,7.068e-05,2]
[395176144,1764515097160,-1075.67677876,7.068e-05,2]
[395176145,1764515097192,-231.2,7.096e-05,2]
[395176146,1764515097223,-877.66095126,7.1e-05,2]
[395176147,1764515097253,-380.66420955,7.11e-05,2]
[395176148,1764515097289,-241.85992834,7.11e-05,2]
[395176149,1764515097321,-316.76703212,7.11e-05,2]
[395176150,1764515097352,-180.90769203,7.11e-05,2]
[395176151,1764515106542,2245.63750171,6.711e-05,2]
[395176152,1764515106680,197.85798399,6.711e-05,2]
[395176153,1764515109040,253.18369355,6.711e-05,2]
[395176154,1764515109081,500.0,6.711e-05,2]
[395176155,1764515109369,250.0,6.711e-05,2]
[395176156,1764515113817,500.0,6.711e-05,2]
[395176157,1764515114209,231.28369723,6.711e-05,2]
[395176158,1764515114620,500.0,6.711e-05,2]
[395176159,1764515118811,500.0,6.711e-05,2]
[395176160,1764515119467,500.0,6.711e-05,2]
[395176161,1764515120087,500.0,6.711e-05,2]
[395176162,1764515120714,250.0,6.711e-05,2]
[395176163,1764515145023,7018.72630277,6.611e-05,2]
[395176164,1764515145051,10000.01,6.611e-05,2]
[395176165,1764515145079,226632.08516571,6.611e-05,2]
[395176167,1764515167578,-179.17767833,6.545e-05,2]
[395176168,1764515167798,-300.0,6.61e-05,2]
[395176169,1764515171229,9028.40835845,6.545e-05,2]
[395176171,1764515179374,13.24628489,6.545e-05,2]
[395176172,1764515201061,-1983.430892,6.415e-05,2]
[395176173,1764515202414,3892.2444106,5.769e-05,2]
[395176174,1764515222361,185.14,1e-05,2]
[395176175,1764515222744,185.14,1.6e-05,2]
[395176176,1764515239608,-1909.94378803,6.415e-05,2]
[395176177,1764515260945,699.62540476,6.415e-05,2]
[395176178,1764515282604,158.95,1e-05,2]
[395176179,1764515282997,158.95,1.3e-05,2]
[395176180,1764515283359,158.95,1.6e-05,2]
[395176181,1764515283694,158.95,1.9e-05,2]
[395176182,1764515284417,-150.0,6.415e-05,2]
[395176183,1764515284440,-41.17768377,6.48e-05,2]
[395176184,1764515287014,-180.71655185,6.48e-05,2]
[395176185,1764515289074,-226.89935553,6.48e-05,2]
[395176186,1764515291621,-184.76818524,6.48e-05,2]
[395176187,1764515293564,-225.77268511,6.48e-05,2]
[395176188,1764515295615,-345.10733383,6.48e-05,2]
[395176189,1764515297771,-154.89266617,6.48e-05,2]
[395176190,1764515300897,-407.61590738,6.48e-05,2]
[395176191,1764515302950,-216.48052312,6.48e-05,2]
[395176192,1764515302972,-75.52897426,6.545e-05,2]
[395176193,1764515305082,-699.62540476,6.545e-05,2]
[395176194,1764515342307,154.01,1e-05,2]
[395176195,1764515342617,154.01,1.4e-05,2]
[395176196,1764515342923,154.01,1.8e-05,2]
[395176197,1764515343228,154.01,2.3e-05,2]
[395176198,1764515364139,-699.62540476,6.415e-05,2]
[395176199,1764515364160,-1801.639094,6.48e-05,2]
[395176200,1764515364182,-854.56157548,6.545e-05,2]
[395176201,1764515370613,342.46866617,6.252e-05,2]
[395176202,1764515379136,1562.24017781,6.252e-05,2]
[395176203,1764515387339,971.70693957,6.252e-05,2]
[395176204,1764515395229,1027.40599851,6.252e-05,2]
[395176205,1764515395894,-357.25818978,6.315e-05,2]
[395176206,1764515398771,-269.75818485,6.315e-05,2]
[395176207,1764515400728,-484.31312287,6.315e-05,2]
[395176208,1764515403406,450.91068031,6.252e-05,2]
[395176209,1764515411909,205.0,6.252e-05,2]
[395176210,1764515412550,-205.0,6.315e-05,2]
[395176211,1764515412573,-176.74524341,6.315e-05,2]
[395176212,1764515415184,-274.1654369,6.315e-05,2]
[395176213,1764515415207,-15.39184701,6.578e-05,2]
[395176214,1764515417333,-257.71210223,6.578e-05,2]
[395176215,1764515419837,-227.11697918,6.578e-05,2]
[395176216,1764515424825,-235.57215521,6.512e-05,2]
[395176217,1764515426930,-92.80255168,6.512e-05,2]
[395176218,1764515426954,-165.30925739,6.578e-05,2]
[395176219,1764515426978,-226.73193271,6.61e-05,2]
[395176220,1764515430492,-321.90067097,6.447e-05,2]
[395176259,1764515431894,-6.47403592,6.447e-05,2]
[395176261,1764515431905,-308.15134317,6.61e-05,2]
[395176264,1764515432573,-300.0,6.61e-05,2]
[395176265,1764515436914,-365.11672412,6.61e-05,2]
[395176266,1764515436935,-14.57632039,6.61e-05,2]
[395176300,1764515438142,-285.42367961,6.61e-05,2]
[395176302,1764515438151,-300.0,6.61e-05,2]
[395176304,1764515438161,-1200.0,6.61e-05,2]
[395176306,1764515438170,-500.0,6.61e-05,2]
[395176307,1764515438179,-29478.03081146,6.611e-05,2]
[395176310,1764515438199,-254246.7202759,6.611e-05,2]
[395176313,1764515438216,-304.928119,6.611e-05,2]
[395176550,1764515440457,-2e-08,6.611e-05,2]
[395176560,1764515440542,-190.28111491,6.611e-05,2]
[395176562,1764515440554,-18271.3,6.611e-05,2]
[395176565,1764515440571,-8660.67870736,6.611e-05,2]
[395177498,1764515450255,-227.48557727,6.545e-05,2]
[395177616,1764515463859,-1000.90677134,6.48e-05,2]
[395177617,1764515473335,1000.90677134,6.48e-05,2]
[395177618,1764515482979,-1000.90677134,6.545e-05,2]
[395177619,1764515495940,1964.27188694,6.544e-05,2]
[395177620,1764515509292,-500.0,6.61e-05,2]
[395177621,1764515509324,-164.27188694,6.61e-05,2]
[395177622,1764515509359,-500.0,6.61e-05,2]
[395177623,1764515509394,-300.0,6.61e-05,2]
[395177624,1764515509427,-500.0,6.61e-05,2]
[395177625,1764515509459,-500.0,6.61e-05,2]
[395177626,1764515509493,-500.0,6.61e-05,2]
[395177627,1764515509525,-500.0,6.61e-05,2]
[395177628,1764515509555,-300.0,6.61e-05,2]
[395177629,1764515509588,-468.63421295,6.611e-05,2]
[395177630,1764515525337,-1732.31500178,6.545e-05,2]
[395177631,1764515539708,-500.0,6.61e-05,2]
[395177632,1764515542777,-171.46622612,6.61e-05,2]
[395177633,1764515542805,-159.20196074,6.61e-05,2]
[395177634,1764515552907,-176.63275406,6.611e-05,2]
[395177635,1764515556596,-300.00214169,6.611e-05,2]
[395177637,1764515558411,-323.36724594,6.611e-05,2]
[395177638,1764515562324,-165.33395438,6.611e-05,2]
[395177639,1764515583109,150.0,6.611e-05,2]
[395177650,1764515689807,-309.72845965,6.611e-05,2]
[395177651,1764515693408,-191.14585261,6.611e-05,2]
[395177652,1764515695594,-67.98739189,6.611e-05,2]
[395177653,1764515695616,-206.73576502,6.611e-05,2]
[395177654,1764515695638,-158.3084655,6.676e-05,2]
[395177655,1764515705237,-507.62377453,6.676e-05,2]
[395177656,1764515708833,150.0,6.676e-05,2]
[395177657,1764515724647,-1200.0,6.741e-05,2]
[395177658,1764515724685,-300.0,6.741e-05,2]
[395177659,1764515724721,-1200.0,6.741e-05,2]
[395177660,1764515741743,-300.0,6.742e-05,2]
[395177661,1764515741775,-300.0,6.742e-05,2]
[395177662,1764515741807,-300.0,6.742e-05,2]
[395177663,1764515741840,-300.0,6.742e-05,2]
[395177664,1764515741873,-300.0,6.742e-05,2]
[395177665,1764515741905,-300.0,6.742e-05,2]
[395177666,1764515741937,-300.0,6.742e-05,2]
[395177667,1764515741967,-300.0,6.742e-05,2]
[395177668,1764515741997,-300.0,6.742e-05,2]
[395177669,1764515742029,-300.0,6.742e-05,2]
[395177670,1764515742061,-300.0,6.742e-05,2]
[395177671,1764515742092,-300.0,6.742e-05,2]
[395177672,1764515742127,-300.0,6.742e-05,2]
[395177673,1764515742159,-300.0,6.742e-05,2]
[395177674,1764515742191,-300.0,6.742e-05,2]
[395177675,1764515742222,-400.01,6.742e-05,2]
[395177676,1764515742440,-199.99,6.742e-05,2]
[395177677,1764515765621,230.75638956,6.798e-05,2]
[395177678,1764515788251,230.75638956,6.798e-05,2]
[395177679,1764515822380,150.0,6.866e-05,2]
[395177681,1764515997348,168.18334744,6.8e-05,2]
[395177682,1764516004503,209.0,6.866e-05,2]
[395177683,1764516013658,255.8153106,6.866e-05,2]
[395177684,1764516084130,230.75638956,6.798e-05,2]
[395177685,1764516107209,230.75638956,6.798e-05,2]
[395177686,1764516129591,230.75638956,6.798e-05,2]
[395177687,1764516152352,230.75638956,6.798e-05,2]
[395177688,1764516175468,230.75638956,6.798e-05,2]
[395177689,1764516178140,500.0,6.711e-05,2]
[395177690,1764516198338,230.75638956,6.798e-05,2]
[395177691,1764516220770,230.75638956,6.798e-05,2]
[395177692,1764516243862,230.75638956,6.798e-05,2]
[395177693,1764516266239,230.75638956,6.798e-05,2]
[395177694,1764516288581,230.75638956,6.798e-05,2]
[395177695,1764516309819,174.61919141,6.866e-05,2]
[395177696,1764516310298,197.20841818,6.866e-05,2]
[395177697,1764516312609,230.75638956,6.798e-05,2]
[395177698,1764516313354,500.0,6.866e-05,2]
[395177699,1764516315934,500.0,6.866e-05,2]
[395177700,1764516316042,500.0,6.866e-05,2]
[395177701,1764516316575,500.0,6.866e-05,2]
[395177702,1764516316666,500.0,6.866e-05,2]
[395177703,1764516317224,500.0,6.866e-05,2]
[395177704,1764516317300,500.0,6.866e-05,2]
[395177705,1764516317867,500.0,6.866e-05,2]
[395177706,1764516317957,500.0,6.866e-05,2]
[395177707,1764516318508,506.42489316,6.866e-05,2]
[395177708,1764516318581,338.92577493,6.866e-05,2]
[395177709,1764516318611,161.07422507,6.866e-05,2]
[395177710,1764516319232,500.0,6.866e-05,2]
[395177711,1764516319869,500.0,6.866e-05,2]
[395177712,1764516320207,-230.75638956,6.866e-05,2]
[395177713,1764516320491,288.20452748,6.866e-05,2]
[395177714,1764516320642,231.28369723,6.866e-05,2]
[395177715,1764516336900,639.90790711,6.858e-05,2]
[395177716,1764516474514,189.8631296,6.261e-05,2]
[395177717,1764516524668,652.61359523,6.858e-05,2]
[395177718,1764516533486,652.61359523,6.858e-05,2]
[395177719,1764516549182,652.61359523,6.858e-05,2]
[395177720,1764516557021,614.88375483,6.858e-05,2]
[395177721,1764516615524,231.28369723,6.928e-05,2]
[395177723,1764516618483,-209.0,6.928e-05,2]
[395177724,1764516622733,150.0,6.859e-05,2]
[395177781,1764516632496,-652.61359523,6.996e-05,2]
[395177782,1764516632506,-500.0,7.064e-05,2]
[395177783,1764516632516,-250.0,7.097e-05,2]
[395177784,1764516632525,-338.50149788,7.11e-05,2]
[395177785,1764516632534,-336.51654838,7.11e-05,2]
[395177786,1764516632544,-1013.65450279,7.129e-05,2]
[395177787,1764516632553,-288.04415058,7.131e-05,2]
[395177788,1764516632565,-184.35843427,7.134e-05,2]
[395177789,1764516632575,-344.33532121,7.134e-05,2]
[395177790,1764516632584,-607.88434644,7.134e-05,2]
[395177821,1764516638268,-11.91923174,7.134e-05,2]
[395177823,1764516638278,-273.96560326,7.134e-05,2]
[395178007,1764516640330,-2e-08,7.134e-05,2]
[395178022,1764516640460,-926.03439672,7.134e-05,2]
[395178024,1764516640469,-638.38505403,7.135e-05,2]
[395178026,1764516640478,-360.41069239,7.144e-05,2]
[395178028,1764516640487,-300.0,7.152e-05,2]
[395178030,1764516640496,-300.0,7.153e-05,2]
[395178031,1764516640506,-300.0,7.153e-05,2]
[395178033,1764516640515,-70.23017443,7.153e-05,2]
[395178036,1764516640526,-229.76982557,7.153e-05,2]
[395178038,1764516640536,-260.81414118,7.154e-05,2]
[395178150,1764516641597,500.0,0.0002,30]
[395178200,1764516643591,-2.11252345,7.154e-05,2]
[395178210,1764516646205,-371.00000002,7.082e-05,2]
[395178212,1764516646215,-937.07333537,7.154e-05,2]
[395178214,1764516646224,-500.0,7.154e-05,2]
[395178216,1764516646234,-500.0,7.154e-05,2]
[395178218,1764516646243,-253.82562942,7.154e-05,2]
[395178220,1764516646252,-500.0,7.154e-05,2]
[395178222,1764516646262,-500.0,7.154e-05,2]
[395178223,1764516646271,-500.0,7.154e-05,2]
[395178224,1764516646281,-500.0,7.154e-05,2]
[395178225,1764516646290,-500.0,7.154e-05,2]
[395178226,1764516646299,-500.0,7.154e-05,2]
[395178227,1764516646309,-500.0,7.154e-05,2]
[395178228,1764516646318,-500.0,7.154e-05,2]
[395178229,1764516646327,-500.0,7.154e-05,2]
[395178230,1764516646336,-500.0,7.154e-05,2]
[395178231,1764516646346,-498.42991767,7.154e-05,2]
[395178232,1764516646355,-556.48445926,7.154e-05,2]
[395178233,1764516646365,-500.0,7.154e-05,2]
[395178234,1764516646375,-500.0,7.154e-05,2]
[395178235,1764516646384,-500.0,7.154e-05,2]
[395178236,1764516646394,-500.0,7.154e-05,2]
[395178237,1764516646404,-500.0,7.154e-05,2]
[395178238,1764516646413,-500.0,7.154e-05,2]
[395178239,1764516646423,-500.0,7.154e-05,2]
[395178240,1764516646433,-500.0,7.154e-05,2]
[395178241,1764516646443,-500.0,7.154e-05,2]
[395178242,1764516646452,-500.0,7.154e-05,2]
[395178243,1764516646462,-500.0,7.154e-05,2]
[395178244,1764516646472,-500.0,7.154e-05,2]
[395178245,1764516646482,-500.0,7.154e-05,2]
[395178246,1764516646492,-500.0,7.154e-05,2]
[395178247,1764516646502,-500.0,7.154e-05,2]
[395178248,1764516646511,-184.82908141,7.16e-05,2]
[395178249,1764516646521,-584.187,7.16e-05,2]
[395178250,1764516646531,-151.0,7.165e-05,2]
[395178251,1764516646541,-151.0,7.165e-05,2]
[395178252,1764516646550,-151.0,7.165e-05,2]
[395178253,1764516646559,-151.0,7.165e-05,2]
[395178254,1764516646569,-151.0,7.165e-05,2]
[395178255,1764516646578,-151.0,7.165e-05,2]
[395178256,1764516646587,-151.0,7.165e-05,2]
[395178257,1764516646596,-151.0,7.165e-05,2]
[395178258,1764516646606,-151.0,7.165e-05,2]
[395178259,1764516646615,-2479.21431271,7.165e-05,2]
[395178260,1764516646624,-583.0,7.17e-05,2]
[395178261,1764516646633,-200.54523682,7.17e-05,2]
[395178262,1764516646642,-823.24203845,7.174e-05,2]
[395178267,1764516821935,-151.0,7.102e-05,2]
[395178268,1764516942554,-279.8378444,0.00020952,32]
[395178269,1764516942583,-2720.1621556,0.00021,30]
[395178270,1764517047089,2230.049063,6.961e-05,2]
[395178271,1764517144862,167.00270632,0.00010721,3]
[395178272,1764517261022,329.26142167,0.00010721,3]
[395178273,1764517264286,151.0,6.953e-05,2]
[395178274,1764517376860,154.210138,0.00014,10]
[395178275,1764517570574,354.83419917,0.00010721,3]
[395178276,1764517608634,228.1969065,6.232e-05,2]
[395178281,1764517640868,2970.0101017,6.278e-05,2]
[395178298,1764517832156,-210.0,7.023e-05,2]
[395178300,1764517832165,-659.96132332,7.041e-05,2]
[395178301,1764517832174,-231.28369723,7.152e-05,2]
[395178303,1764517832183,-24.73089323,7.153e-05,2]
[395178306,1764517832194,-1175.26910677,7.153e-05,2]
[395178307,1764517832204,-1200.0,7.154e-05,2]
[395178309,1764517832213,-300.0,7.154e-05,2]
[395178311,1764517832222,-300.0,7.154e-05,2]
[395178313,1764517832231,-643.53431956,7.155e-05,2]
[395178315,1764517832240,-500.0,7.155e-05,2]
[395178317,1764517832251,-335.08052495,7.155e-05,2]
[395178319,1764517832259,-500.0,7.155e-05,2]
[395178321,1764517832268,-342.60318601,7.155e-05,2]
[395178323,1764517832277,-196.2505796,7.156e-05,2]
[395178325,1764517832287,-556.80129071,7.156e-05,2]
[395178330,1764517832322,-524.884432,7.156e-05,2]
[395178391,1764517838444,-1274.43999481,7.156e-05,2]
[395178576,1764517840473,-11204.72619848,7.156e-05,2]
[395178578,1764517840482,-685.19557719,7.186e-05,2]
[395178580,1764517840492,-1903.32104774,7.189e-05,2]
[395178582,1764517840501,-319.87111298,7.192e-05,2]
[395178584,1764517840510,-408.56643458,7.196e-05,2]
[395178586,1764517840520,-1101.87302787,7.197e-05,2]
[395178588,1764517840530,-493.68428509,7.206e-05,2]
[395178590,1764517840539,-323.6556599,7.267e-05,2]
[395178592,1764517840548,-153.7328875,7.274e-05,2]
[395178594,1764517840556,-467.35,7.303e-05,2]
[395178595,1764517840568,-300.0,7.307e-05,2]
[395178597,1764517840578,-300.0,7.307e-05,2]
[395178599,1764517840587,-300.0,7.307e-05,2]
[395178601,1764517840596,-300.0,7.307e-05,2]
[395178603,1764517840606,-300.0,7.307e-05,2]
[395178605,1764517840615,-300.0,7.307e-05,2]
[395178607,1764517840624,-300.0,7.307e-05,2]
[395178609,1764517840634,-300.0,7.307e-05,2]
[395178611,1764517840643,-300.0,7.307e-05,2]
[395178613,1764517840653,-300.0,7.307e-05,2]
[395178614,1764517840662,-300.0,7.307e-05,2]
[395178616,1764517840671,-300.0,7.307e-05,2]
[395178618,1764517840681,-300.0,7.307e-05,2]
[395178620,1764517840691,-300.0,7.307e-05,2]
[395178622,1764517840700,-300.0,7.307e-05,2]
[395178624,1764517840710,-600.0,7.307e-05,2]
[395178626,1764517840719,-365.56698626,7.443e-05,2]
[395178628,1764517840728,-343.99404676,7.449e-05,2]
[395178630,1764517840738,-1633.98114183,7.582e-05,2]
[395178632,1764517840747,-393.13605344,7.655e-05,2]
[395178634,1764517840757,-151.23189372,7.693e-05,2]
[395178635,1764517840766,-151.0,7.693e-05,2]
[395178637,1764517840775,-151.47656527,7.693e-05,2]
[395178639,1764517840783,-558.0,7.693e-05,2]
[395178641,1764517840792,-151.59078118,7.693e-05,2]
[395178643,1764517840801,-151.0,7.693e-05,2]
[395178645,1764517840810,-151.0,7.693e-05,2]
[395178647,1764517840819,-151.0,7.693e-05,2]
[395178649,1764517840829,-151.0,7.693e-05,2]
[395178650,1764517840838,-151.69926731,7.693e-05,2]
[395178652,1764517840848,-151.0,7.693e-05,2]
[395178654,1764517840857,-990.0,7.693e-05,2]
[395178656,1764517840866,-631.0,7.693e-05,2]
[395178658,1764517840875,-2154.0,7.693e-05,2]
[395178660,1764517840884,-185.16658988,7.699e-05,2]
[395178662,1764517840893,-239.84119403,7.7e-05,2]
[395178664,1764517840902,-1633.98114183,7.755e-05,2]
[395178666,1764517840911,-151.0,7.83e-05,2]
[395178667,1764517840920,-558.0,7.83e-05,2]
[395178669,1764517840929,-151.0,7.83e-05,2]
[395178671,1764517840938,-151.0,7.83e-05,2]
[395178673,1764517840947,-151.0,7.83e-05,2]
[395178675,1764517840957,-151.0,7.83e-05,2]
[395178677,1764517840966,-198.0,7.83e-05,2]
[395178679,1764517840975,-614.2750835,7.861e-05,2]
[395178681,1764517840985,-1680.0,7.868e-05,2]
[395178683,1764517840993,-1680.0,7.869e-05,2]
[395178684,1764517841002,-420.0,7.869e-05,2]